bitfinex/quotes_SOLUSD_20251126
["timestamp","ask_amount","ask_price","bid_price","bid_amount"]
[1764150385888,122.89131891,136.7,136.69,0.1]
[1764150387592,133.13991186,136.7,136.69,0.1]
[1764150389501,21.90462291,136.7,136.69,0.78]
[1764150389671,17.07636526,136.7,136.69,0.78]
[1764150389871,17.07636526,136.7,136.69,0.1]
[1764150390695,18.25968407,136.7,136.69,0.1]
[1764150391285,11.74324892,136.7,136.69,0.78]
[1764150391626,3.27643515,136.75,136.69,4.05643515]
[1764150391889,8.80994492,136.72,136.69,4.05643515]
[1764150392077,3.24,136.71,136.7,0.68]
[1764150393315,12.04994492,136.71,136.7,0.68]
[1764150394215,12.04994492,136.71,136.7,7.99528895]
[1764150396308,12.04994492,136.71,136.7,0.68]
[1764150398213,8.80994492,136.71,136.7,7.99528895]
[1764150407294,8.80994492,136.7,136.69,0.1]
[1764150407623,26.5820529,136.7,136.69,0.1]
[1764150408006,26.5820529,136.7,136.68,0.1]
[1764150408232,20.86578811,136.69,136.68,0.1]
[1764150408737,26.88831863,136.69,136.68,0.1]
[1764150409231,20.86578811,136.69,136.68,0.1]
[1764150409728,28.18161223,136.69,136.68,0.1]
[1764150410834,8.80994492,136.67,136.66,0.1]
[1764150411033,16.91578811,136.67,136.66,0.1]
[1764150411222,17.62578811,136.67,136.66,0.1]
[1764150413138,24.94268281,136.67,136.66,0.1]
[1764150414037,27.87727801,136.67,136.66,0.1]
[1764150418116,111.90994492,136.64,136.63,0.1]
[1764150418331,15.32638007,136.64,136.63,0.1]
[1764150419337,25.11880892,136.62,136.61,0.1]
[1764150419527,28.39524407,136.62,136.61,0.1]
[1764150420221,43.03667358,136.62,136.61,0.1]
[1764150420421,35.71710105,136.62,136.61,0.1]
[1764150420624,43.03667358,136.62,136.61,0.1]
[1764150421242,49.60706096,136.62,136.61,0.1]
[1764150421447,40.47023843,136.62,136.61,0.1]
[1764150421650,28.35880892,136.62,136.61,0.82]
[1764150423142,28.35880892,136.62,136.61,8.14010833]
[1764150424032,28.35880892,136.62,136.61,0.82]
[1764150424236,38.9548166,136.62,136.61,0.1]
[1764150425945,31.63524407,136.62,136.61,0.1]
[1764150426121,38.9548166,136.62,136.61,0.1]
[1764150426328,39.6748166,136.62,136.61,0.1]
[1764150426745,31.63524407,136.62,136.61,0.1]
[1764150427141,38.9548166,136.62,136.61,0.1]
[1764150428336,39.6748166,136.62,136.61,0.1]
[1764150428536,44.4641221,136.62,136.61,0.1]
[1764150428725,33.18454957,136.62,136.61,0.1]
[1764150428928,31.63524407,136.62,136.61,0.76]
[1764150429355,31.63524407,136.62,136.61,0.1]
[1764150430049,46.27608497,136.62,136.61,0.1]
[1764150430238,46.99608497,136.62,136.61,0.1]
[1764150430569,39.67651244,136.62,136.61,0.1]
[1764150430756,35.68007729,136.62,136.61,0.1]
[1764150430955,38.95651244,136.62,136.61,0.1]
[1764150431134,46.27608497,136.62,136.61,0.1]
[1764150431341,46.99608497,136.62,136.61,0.1]
[1764150431554,16.13121329,136.62,136.61,0.76]
[1764150431744,15.32638007,136.62,136.61,0.1]
[1764150432854,22.6459526,136.62,136.61,0.1]
[1764150433360,12.08638007,136.62,136.61,0.76]
[1764150433532,8.80994492,136.62,136.61,0.76]
[1764150433734,12.04994492,136.62,136.61,0.76]
[1764150434661,12.04994492,136.62,136.61,8.08010833]
[1764150436360,8.80994492,136.62,136.61,8.08010833]
[1764150436561,12.04994492,136.62,136.61,8.08010833]
[1764150436758,15.32638007,136.62,136.61,8.08010833]
[1764150437061,12.04994492,136.62,136.61,8.08010833]
[1764150438966,8.80994492,136.62,136.61,8.08010833]
[1764150439139,12.04994492,136.62,136.61,8.08010833]
[1764150440464,31.63524407,136.62,136.61,0.1]
[1764150440663,16.00638007,136.62,136.61,0.1]
[1764150440869,33.6315094,136.62,136.61,0.1]
[1764150441162,15.32638007,136.62,136.61,0.1]
[1764150441353,22.64812515,136.62,136.61,0.1]
[1764150442340,30.64769768,136.62,136.61,0.1]
[1764150442668,29.96769768,136.62,136.61,0.1]
[1764150443364,30.64769768,136.62,136.61,0.1]
[1764150445568,35.43413743,136.62,136.61,0.1]
[1764150447565,32.15770228,136.62,136.61,0.1]
[1764150447760,35.43413743,136.62,136.61,0.1]
[1764150447947,8.80994492,136.58,136.56,0.65]
[1764150448151,118.72638007,136.57,136.56,0.65]
[1764150450579,117.55081376,136.57,136.56,0.65]
[1764150451280,122.35375601,136.57,136.56,0.65]
[1764150451575,120.25288717,136.57,136.56,7.97278851]
[1764150451785,115.44994492,136.57,136.56,7.97278851]
[1764150452161,120.25935019,136.57,136.56,7.97278851]
[1764150452679,122.36021903,136.57,136.56,0.65]
[1764150454184,11.45935019,136.57,136.56,7.97278851]
[1764150454354,6.64994492,136.57,136.56,10.07365735]
[1764150454554,6.64994492,136.57,136.56,7.97278851]
[1764150455661,6.64994492,136.57,136.56,10.07365735]
[1764150456066,6.64994492,136.57,136.56,7.97278851]
[1764150456776,16.308864,136.6,136.56,10.07365735]
[1764150457078,3.24,136.6,136.58,2.10086884]
[1764150457451,12.04994492,136.6,136.59,2.10086884]
[1764150458062,12.04994492,136.6,136.59,7.32118017]
[1764150460077,8.80994492,136.59,136.58,7.32171621]
[1764150461890,3.24,136.6,136.58,9.42258505]
[1764150462589,8.80994492,136.64,136.59,2.10086884]
[1764150462786,8.80994492,136.62,136.6,2.10086884]
[1764150463572,8.80994492,136.62,136.61,2.10086884]
[1764150464093,8.80994492,136.62,136.58,54.91287157]
[1764150465297,16.308864,136.63,136.58,54.91287157]
[1764150465480,12.04994492,136.64,136.58,54.91287157]
[1764150465683,12.04994492,136.64,136.61,2.10086884]
[1764150466394,12.04994492,136.64,136.62,7.31957253]
[1764150471795,12.73994492,136.64,136.62,7.31957253]
[1764150472091,12.04994492,136.64,136.62,7.31957253]
[1764150472295,12.04994492,136.63,136.62,7.31957253]
[1764150474489,8.80994492,136.63,136.62,7.31957253]
[1764150476184,8.80994492,136.63,136.61,18.29900973]
[1764150476397,8.80994492,136.63,136.61,20.39987857]
[1764150477503,8.80994492,136.63,136.61,18.29900973]
[1764150479100,8.80994492,136.62,136.61,25.61911806]
[1764150479304,8.80994492,136.62,136.61,7.32010833]
[1764150479508,0.69,136.63,136.61,7.32010833]
[1764150479681,9.49994492,136.64,136.61,7.32010833]
[1764150479881,9.49994492,136.64,136.61,25.62037917]
[1764150480101,9.49994492,136.64,136.58,18.30429052]
[1764150480303,112.89994492,136.64,136.59,2.10086884]
[1764150481014,112.89994492,136.64,136.6,25.62225475]
[1764150481386,0.69,136.63,136.6,25.62225475]
[1764150482605,8.80994492,136.62,136.6,25.62225475]
[1764150483395,8.80994492,136.63,136.61,2.10086884]
[1764150483582,8.80994492,136.63,136.62,2.10086884]
[1764150483786,8.80994492,136.63,136.61,2.10086884]
[1764150484408,103.4,136.64,136.62,2.10086884]
[1764150485011,103.4,136.64,136.61,2.10086884]
[1764150485212,103.4,136.64,136.62,7.31957253]
[1764150485399,103.4,136.64,136.62,9.42044137]
[1764150488415,12.04994492,136.65,136.63,2.10086884]
[1764150488416,8.80994492,136.65,136.63,2.10086884]
[1764150489714,0.68,136.64,136.62,25.61850387]
[1764150491422,8.80994492,136.65,136.62,25.61850387]
[1764150491423,8.80994492,136.65,136.62,27.71937271]
[1764150491605,9.48994492,136.65,136.62,27.71937271]
[1764150491926,8.80994492,136.65,136.62,27.71937271]
[1764150493126,9.48994492,136.65,136.62,27.71937271]
[1764150494013,8.80994492,136.65,136.62,27.71937271]
[1764150494326,9.46994492,136.65,136.62,25.61850387]
[1764150496928,8.80994492,136.65,136.62,18.29893134]
[1764150497125,8.80994492,136.65,136.61,7.32010833]
[1764150497126,8.80994492,136.63,136.61,7.32010833]
[1764150497336,12.04994492,136.63,136.61,7.32010833]
[1764150497706,9.46994492,136.62,136.61,7.32010833]
[1764150499116,9.46994492,136.62,136.6,18.30095427]
[1764150500003,8.80994492,136.62,136.6,18.30095427]
[1764150500435,12.04994492,136.62,136.6,18.30095427]
[1764150500608,12.70994492,136.62,136.6,18.30095427]
[1764150500927,8.80994492,136.62,136.6,18.30095427]
[1764150501125,12.04994492,136.64,136.6,27.72246732]
[1764150501302,12.70994492,136.64,136.6,27.72246732]
[1764150503335,9.46994492,136.64,136.61,2.10086884]
[1764150503528,8.80994492,136.64,136.62,2.10086884]
[1764150503735,106.64,136.65,136.61,2.10086884]
[1764150504239,107.3,136.65,136.61,2.10086884]
[1764150505122,107.3,136.65,136.62,25.61850387]
[1764150505834,106.64,136.65,136.62,25.61850387]
[1764150506139,8.80994492,136.66,136.63,2.10086884]
[1764150506314,12.04994492,136.66,136.62,64.31723539]
[1764150506709,0.66,136.67,136.63,2.10086884]
[1764150506905,4.8275913,136.66,136.63,2.10086884]
[1764150507133,3.24,136.67,136.64,25.61475409]
[1764150507323,4.82849418,136.66,136.64,25.61475409]
[1764150507634,3.9,136.67,136.64,25.61475409]
[1764150507836,4.82797422,136.66,136.64,25.61475409]
[1764150508034,3.24,136.67,136.64,27.71562293]
[1764150508334,8.80994492,136.67,136.64,27.71562293]
[1764150508913,3.9,136.69,136.65,2.10086884]
[1764150509251,3.9,136.69,136.66,25.6110054]
[1764150509625,5.48555361,136.68,136.66,25.6110054]
[1764150509935,4.82555361,136.67,136.66,25.6110054]
[1764150510126,5.48555361,136.67,136.66,25.6110054]
[1764150511345,5.48555361,136.67,136.64,25.61418937]
[1764150511644,0.66,136.66,136.64,25.61418937]
[1764150514032,8.80994492,136.65,136.64,25.61418937]
[1764150514541,9.46994492,136.65,136.64,25.61418937]
[1764150515025,12.74683543,136.65,136.64,7.31850117]
[1764150515229,12.74683543,136.65,136.63,7.31884173]
[1764150515230,17.57256491,136.65,136.63,7.31884173]
[1764150515417,8.76245567,136.64,136.63,7.31884173]
[1764150516024,8.80994492,136.63,136.6,18.30088319]
[1764150516224,12.70994492,136.63,136.6,18.30088319]
[1764150516537,0.66,136.62,136.6,18.30088319]
[1764150518148,12.08683543,136.61,136.59,7.32118017]
[1764150518646,9.46994492,136.6,136.59,7.32118017]
[1764150519454,8.80994492,136.6,136.58,18.30363841]
[1764150520346,9.46994492,136.6,136.58,18.30363841]
[1764150523247,15.49247544,136.66,136.58,21.54363841]
[1764150523453,8.80994492,136.63,136.6,25.62225475]
[1764150523939,0.66,136.62,136.6,25.62225475]
[1764150525755,0.66,136.62,136.6,18.30161054]
[1764150526852,12.08683543,136.61,136.59,7.32118017]
[1764150527255,0.71,136.6,136.59,7.32118017]
[1764150527835,0.71,136.6,136.57,36.61126162]
[1764150528838,0.71,136.6,136.57,62.23914475]
[1764150529261,8.80994492,136.59,136.57,25.62788313]
[1764150529556,0.71,136.58,136.57,25.62788313]
[1764150529732,8.80994492,136.61,136.57,25.62788313]
[1764150529931,22.82575451,136.62,136.57,25.62788313]
[1764150529932,8.80994492,136.59,136.57,25.62788313]
[1764150530459,0.71,136.59,136.57,25.62788313]
[1764150530754,9.51994492,136.61,136.57,28.90477364]
[1764150530931,8.80994492,136.62,136.6,3.27689051]
[1764150531332,9.51994492,136.62,136.59,3.27689051]
[1764150532962,9.51994492,136.62,136.6,7.32064421]
[1764150535758,8.80994492,136.63,136.6,28.89914526]
[1764150535963,9.51994492,136.63,136.6,28.89914526]
[1764150537353,8.80994492,136.63,136.6,25.62225475]
[1764150537555,9.51994492,136.63,136.6,28.89914526]
[1764150540474,8.80994492,136.63,136.6,25.62225475]
[1764150540772,0.71,136.62,136.6,25.62225475]
[1764150545862,8.80994492,136.61,136.6,25.62225475]
[1764150546374,9.46994492,136.61,136.6,25.62225475]
[1764150547253,9.46994492,136.61,136.57,25.62788313]
[1764150547450,0.66,136.6,136.57,25.62788313]
[1764150547878,8.80994492,136.59,136.57,25.62788313]
[1764150548253,9.46994492,136.58,136.57,25.62788313]
[1764150549077,12.70994492,136.58,136.57,25.62788313]
[1764150549682,12.70994492,136.58,136.55,25.73163675]
[1764150549982,0.66,136.57,136.55,25.73163675]
[1764150550683,0.66,136.57,136.55,18.40831197]
[1764150551270,12.70994492,136.58,136.55,18.40831197]
[1764150552082,12.04994492,136.58,136.55,18.40831197]
[1764150552383,0.66,136.57,136.55,18.40831197]
[1764150552883,0.66,136.57,136.55,25.73163675]
[1764150553667,12.70994492,136.58,136.55,25.73163675]
[1764150554368,0.72,136.57,136.55,25.73163675]
[1764150555486,12.04994492,136.58,136.55,18.40831197]
[1764150555670,0.72,136.57,136.55,21.68520248]
[1764150555987,3.24,136.58,136.55,21.68520248]
[1764150556191,12.76994492,136.59,136.56,3.27689051]
[1764150556488,12.04994492,136.59,136.56,3.27689051]
[1764150556675,0.72,136.58,136.56,3.27689051]
[1764150557584,0.72,136.58,136.56,7.32278851]
[1764150564009,0.72,136.58,136.55,18.40831197]
[1764150564500,8.80994492,136.57,136.55,18.40831197]
[1764150564881,0.72,136.56,136.55,18.40831197]
[1764150566506,9.52994492,136.56,136.55,18.40831197]
[1764150569101,12.76994492,136.56,136.55,18.40831197]
[1764150569326,16.04683543,136.56,136.55,0.1]
[1764150574704,14.871492,136.56,136.55,0.1]
[1764150577214,12.76994492,136.56,136.55,0.1]
[1764150585104,14.871492,136.56,136.55,0.1]
[1764150585426,12.76994492,136.56,136.55,0.1]
[1764150586305,118.271492,136.56,136.55,0.1]
[1764150587605,14.871492,136.56,136.55,0.1]
[1764150588815,12.76994492,136.56,136.55,0.1]
[1764150589126,14.871492,136.56,136.55,0.1]
[1764150592322,27.00094535,136.56,136.55,0.1]
[1764150593099,19.67815684,136.56,136.55,0.1]
[1764150596027,16.43815684,136.56,136.55,0.1]
[1764150596206,26.9978629,136.56,136.55,0.1]
[1764150596835,19.67507439,136.56,136.55,0.1]
[1764150599370,31.180356,136.56,136.55,0.1]
[1764150602130,29.07880892,136.56,136.55,0.1]
[1764150603318,25.83880892,136.56,136.55,0.1]
[1764150603532,29.07880892,136.56,136.55,0.1]
[1764150604644,31.180356,136.56,136.55,0.1]
[1764150606146,35.99145245,136.56,136.55,0.1]
[1764150608546,29.07880892,136.56,136.55,0.1]
[1764150608849,31.180356,136.56,136.55,0.1]
[1764150609018,25.11880892,136.56,136.55,0.1]
[1764150609222,12.04994492,136.56,136.55,0.1]
[1764150611247,12.71994492,136.56,136.55,0.1]
[1764150611653,12.04994492,136.56,136.55,0.1]
[1764150611836,12.71994492,136.56,136.55,0.1]
[1764150612036,12.04994492,136.56,136.55,0.1]
[1764150612947,14.821492,136.56,136.55,0.1]
[1764150613149,19.64225849,136.56,136.55,0.1]
[1764150613354,35.95112249,136.56,136.55,0.1]
[1764150616056,30.60957541,136.56,136.55,0.1]
[1764150616250,33.87957541,136.56,136.55,0.1]
[1764150616423,30.63957541,136.56,136.55,0.1]
[1764150616627,33.87957541,136.56,136.55,0.1]
[1764150617953,29.93957541,136.56,136.55,0.1]
[1764150618177,12.04994492,136.56,136.55,0.1]
[1764150618985,8.80994492,136.56,136.55,0.1]
[1764150619140,8.80994492,136.6,136.55,27.83318383]
[1764150619341,8.80994492,136.58,136.55,64.44980777]
[1764150619766,8.80994492,136.58,136.55,62.34826069]
[1764150619948,8.80994492,136.58,136.55,64.44980777]
[1764150621149,8.80994492,136.58,136.55,25.73163675]
[1764150621562,8.80994492,136.58,136.55,27.83318383]
[1764150622980,24.32701934,136.65,136.57,2.10154708]
[1764150622981,120.408864,136.65,136.57,2.10154708]
[1764150623179,2.80154708,136.67,136.61,27.72192625]
[1764150623360,3.24,136.66,136.62,2.10154708]
[1764150623672,3.24,136.69,136.65,2.10154708]
[1764150624077,3.24,136.69,136.64,2.10154708]
[1764150624386,19.548864,136.7,136.63,6.00447799]
[1764150624562,22.35041108,136.7,136.64,2.10154708]
[1764150624875,20.248864,136.7,136.64,2.10154708]
[1764150625062,8.80994492,136.69,136.64,2.10154708]
[1764150625265,8.80994492,136.69,136.65,27.71442669]
[1764150625968,9.00994492,136.71,136.68,2.10154708]
[1764150626158,0.2,136.72,136.65,62.20270763]
[1764150626361,3.00154708,136.72,136.66,2.10154708]
[1764150626560,8.80994492,136.71,136.66,2.10154708]
[1764150627074,8.80994492,136.71,136.67,8.80994492]
[1764150627273,8.80994492,136.71,136.68,25.60725781]
[1764150628154,0.2,136.72,136.68,27.70880489]
[1764150628362,0.2,136.72,136.69,2.10154708]
[1764150629370,0.2,136.72,136.7,7.31528895]
[1764150629575,0.2,136.72,136.7,25.72570003]
[1764150631664,0.2,136.72,136.7,23.62415295]
[1764150633381,0.2,136.72,136.7,7.31528895]
[1764150633590,0.2,136.72,136.71,21.98526986]
[1764150634883,1e-08,136.72,136.71,25.258558]
[1764150635184,1e-08,136.72,136.71,21.98526986]
[1764150635586,1e-08,136.72,136.71,29.30002371]
[1764150636370,1e-08,136.72,136.71,32.57331185]
[1764150637984,1e-08,136.76,136.71,84.16067764]
[1764150638192,1e-08,136.76,136.71,86.16067763]
[1764150638392,1e-08,136.76,136.72,3.27328814]
[1764150638882,1e-08,136.76,136.71,65.44869592]
[1764150639194,8.80994492,136.75,136.71,62.17540778]
[1764150639578,9.50994492,136.75,136.71,62.17540778]
[1764150640263,9.50994492,136.75,136.71,65.44869592]
[1764150641189,1e-08,136.76,136.71,65.44869592]
[1764150641492,8.80994492,136.75,136.71,65.44869592]
[1764150642205,9.50994492,136.75,136.71,36.57376929]
[1764150642570,12.72994492,136.75,136.71,36.57376929]
[1764150643696,12.72994492,136.75,136.71,62.17540778]
[1764150646189,9.50994492,136.75,136.71,62.17540778]
[1764150646397,12.72994492,136.75,136.71,62.17540778]
[1764150646897,12.72994492,136.75,136.71,65.44869592]
[1764150649395,6.49328814,136.75,136.71,25.60163849]
[1764150649584,7.20328814,136.75,136.71,25.60163849]
[1764150649894,3.93,136.75,136.71,25.60163849]
[1764150650677,3.27328814,136.73,136.71,7.31475385]
[1764150651190,3.22,136.73,136.71,7.31475385]
[1764150651378,3.22,136.73,136.71,25.60163849]
[1764150652798,3.22,136.73,136.68,39.85426278]
[1764150653598,3.93,136.73,136.68,39.85426278]
[1764150653982,3.93,136.73,136.68,65.46152059]
[1764150654992,3.98328814,136.72,136.68,25.60725781]
[1764150655196,0.71,136.71,136.68,25.60725781]
[1764150656190,0.71,136.71,136.68,18.29089844]
[1764150658226,0.71,136.71,136.68,25.60725781]
[1764150659300,0.71,136.71,136.68,18.29089844]
[1764150660411,0.71,136.71,136.68,25.60725781]
[1764150660618,104.11,136.74,136.68,28.88054595]
[1764150660916,3.93,136.74,136.7,3.27328814]
[1764150661120,8.80994493,136.76,136.71,3.27328814]
[1764150661326,3.93000001,136.76,136.72,3.27328814]
[1764150661925,0.71,136.75,136.71,3.27328814]
[1764150662420,0.71,136.75,136.72,25.59976594]
[1764150665318,3.98328814,136.75,136.72,25.59976594]
[1764150665706,0.72,136.74,136.72,25.59976594]
[1764150665910,0.72,136.74,136.7,62.17795176]
[1764150667307,0.72,136.75,136.71,3.27328814]
[1764150667505,8.0250341,136.74,136.71,3.27328814]
[1764150667705,1e-08,136.76,136.71,3.27328814]
[1764150667915,4.8041065,136.75,136.72,3.27328814]
[1764150668123,3.94000001,136.76,136.72,3.27328814]
[1764150668328,5.52430967,136.75,136.72,3.27328814]
[1764150668526,3.94000001,136.76,136.72,3.27328814]
[1764150668713,4.80903781,136.75,136.72,3.27328814]
[1764150668916,3.94000001,136.76,136.72,3.27328814]
[1764150669113,5.52903814,136.75,136.71,19.58215214]
[1764150669429,3.22,136.74,136.72,25.59976594]
[1764150669629,3.94,136.74,136.72,25.59976594]
[1764150670134,3.22,136.74,136.72,25.59976594]
[1764150670311,0.72,136.73,136.72,25.59976594]
[1764150671928,0.72,136.73,136.72,7.31421884]
[1764150672130,5.53269275,136.73,136.72,7.31421884]
[1764150672833,0.72,136.73,136.72,25.59976594]
[1764150673431,0.72,136.73,136.7,25.60351133]
[1764150675319,3.96,136.73,136.7,25.60351133]
[1764150676055,0.68,136.72,136.7,25.60351133]
[1764150676213,3.95328814,136.72,136.7,25.60351133]
[1764150676631,0.68,136.71,136.7,25.60351133]
[1764150678130,0.68,136.71,136.67,39.85701704]
[1764150678619,0.68,136.71,136.67,36.5837289]
[1764150678620,3.95328814,136.71,136.67,36.5837289]
[1764150679018,0.68,136.7,136.67,36.5837289]
[1764150679635,3.92,136.7,136.67,36.5837289]
[1764150679850,3.92,136.7,136.67,62.19286037]
[1764150681831,3.92,136.7,136.67,65.46614851]
[1764150682145,0.68,136.7,136.67,65.46614851]
[1764150682725,0.68,136.7,136.68,3.27328814]
[1764150682931,3.22,136.71,136.69,28.87867257]
[1764150683125,3.9,136.71,136.69,28.87867257]
[1764150683921,3.9,136.71,136.69,25.60538443]
[1764150684946,0.68,136.71,136.68,3.27328814]
[1764150685135,3.9,136.71,136.68,3.27328814]
[1764150686052,0.68,136.7,136.67,39.85701704]
[1764150686222,0.68,136.7,136.67,36.5837289]
[1764150686424,0.68,136.7,136.66,25.6110054]
[1764150687543,0.68,136.7,136.66,28.88429354]
[1764150689355,0.68,136.7,136.67,3.27328814]
[1764150689527,0.68,136.7,136.68,7.31635937]
[1764150689931,3.24,136.69,136.68,7.31635937]
[1764150690255,0.68,136.7,136.68,7.31635937]
[1764150690256,3.92,136.7,136.68,7.31635937]
[1764150691053,3.24,136.7,136.68,7.31635937]
[1764150691265,3.92,136.7,136.68,7.31635937]
[1764150691935,3.24,136.7,136.68,7.31635937]
[1764150692248,0.68,136.69,136.68,7.31635937]
[1764150692755,0.68,136.69,136.66,3.27328814]
[1764150694253,0.68,136.69,136.67,7.3168947]
[1764150695270,59.43516484,136.71,136.67,25.60913147]
[1764150695571,0.68,136.7,136.67,65.46689315]
[1764150695788,3.9,136.7,136.67,62.19360501]
[1764150696051,3.9,136.7,136.67,65.46689315]
[1764150696641,3.9,136.7,136.67,64.28950395]
[1764150701562,0.68,136.69,136.67,64.28950395]
[1764150701760,3.9,136.7,136.67,64.28950395]
[1764150707069,3.92,136.7,136.67,64.28950395]
[1764150708550,0.7,136.69,136.67,62.19360501]
[1764150708760,0.7,136.69,136.67,64.28950395]
[1764150710468,76.44402884,136.71,136.68,2.09589894]
[1764150710645,3.92,136.7,136.68,2.09589894]
[1764150712278,3.92,136.7,136.67,64.28950395]
[1764150712575,0.7,136.69,136.67,64.28950395]
[1764150715451,0.7,136.69,136.67,62.19360501]
[1764150716166,0.7,136.69,136.67,25.60913147]
[1764150716475,3.22,136.68,136.67,25.60913147]
[1764150716896,3.92,136.68,136.67,25.60913147]
[1764150717383,3.92,136.68,136.67,18.29223677]
[1764150718780,3.92,136.68,136.65,25.61287961]
[1764150718988,3.92,136.68,136.65,27.70877855]
[1764150719607,0.7,136.67,136.65,27.70877855]
[1764150719776,3.92,136.68,136.65,27.70877855]
[1764150720890,0.7,136.67,136.65,25.61287961]
[1764150721973,0.7,136.67,136.65,7.3179656]
[1764150722169,10.90584386,136.66,136.61,18.30000126]
[1764150722369,10.90584386,136.64,136.62,7.31957253]
[1764150722588,0.69,136.63,136.61,18.30000126]
[1764150722778,3.22,136.62,136.61,20.3959002]
[1764150723185,3.91,136.62,136.61,20.3959002]
[1764150723679,0.69,136.62,136.61,18.30000126]
[1764150724076,0.69,136.62,136.61,2.09589894]
[1764150725771,3.22,136.63,136.59,36.60446936]
[1764150725978,3.91,136.63,136.59,36.60446936]
[1764150726178,3.91,136.63,136.62,7.31957253]
[1764150727073,8.80994492,136.66,136.62,27.71440281]
[1764150727276,59.43516484,136.67,136.64,2.09589894]
[1764150727277,3.24,136.65,136.64,2.09589894]
[1764150727468,60.12516484,136.67,136.64,2.09589894]
[1764150727782,3.93,136.66,136.64,2.09589894]
[1764150728387,3.24,136.66,136.65,7.3179656]
[1764150729094,3.93,136.66,136.65,7.3179656]
[1764150729268,59.43516484,136.67,136.65,9.41386454]
[1764150729473,3.24,136.67,136.66,2.09589894]
[1764150730377,0.69,136.71,136.67,7.3168947]
[1764150730582,3.93,136.71,136.7,2.09589894]
[1764150731176,20.238864,136.71,136.7,2.09589894]
[1764150731786,16.998864,136.71,136.7,2.09589894]
[1764150731971,20.238864,136.71,136.7,2.09589894]
[1764150732286,16.998864,136.71,136.7,2.09589894]
[1764150732489,0.69,136.74,136.7,9.41118789]
[1764150732706,3.93,136.73,136.7,25.60351133]
[1764150732872,8.80994492,136.72,136.7,25.60351133]
[1764150733071,9.49994492,136.72,136.7,25.60351133]
[1764150733278,0.69,136.71,136.7,25.60351133]
[1764150733972,3.24,136.72,136.7,27.69941027]
[1764150734173,3.24,136.73,136.71,2.09589894]
[1764150734474,3.24,136.75,136.73,25.59789365]
[1764150734778,3.24,136.75,136.74,2.09589894]
[1764150734977,0.67,136.75,136.74,2.09589894]
[1764150735178,1e-08,136.76,136.74,2.09589894]
[1764150735398,0.67000001,136.76,136.75,2.09589894]
[1764150735869,0.67000001,136.76,136.73,25.59789365]
[1764150736070,0.67000001,136.76,136.74,2.09589894]
[1764150736597,0.67000001,136.76,136.75,7.31261425]
[1764150737296,3.22000001,136.76,136.75,9.40851319]
[1764150737473,1e-08,136.76,136.75,9.40851319]
[1764150739106,0.67000001,136.76,136.75,9.40851319]
[1764150739305,1e-08,136.76,136.75,9.40851319]
[1764150741985,1e-08,136.76,136.75,12.33880878]
[1764150746986,0.2,136.77,136.75,12.33880878]
[1764150746987,1e-08,136.77,136.75,12.33880878]
[1764150747311,1e-08,136.77,136.76,2.09589894]
[1764150747687,1e-08,136.77,136.76,5.02597988]
[1764150747991,1e-08,136.77,136.76,2.09589894]
[1764150748784,0.87,136.81,136.76,5.51589894]
[1764150749013,0.67,136.8,136.79,2.09589894]
[1764150749721,0.2,136.81,136.79,2.09589894]
[1764150749923,0.87,136.81,136.8,2.09589894]
[1764150750124,0.2,136.81,136.8,2.09589894]
[1764150750331,0.87,136.85,136.8,2.09589894]
[1764150750622,0.87,136.85,136.84,2.09589894]
[1764150750926,0.2,136.85,136.84,7.30780473]
[1764150751492,0.87,136.85,136.84,7.30780473]
[1764150753712,0.87,136.85,136.82,25.57981033]
[1764150753908,0.67,136.84,136.82,25.57981033]
[1764150754715,0.67,136.84,136.82,27.67570927]
[1764150756020,0.67,136.84,136.83,2.09589894]
[1764150756592,0.67,136.84,136.82,25.57981033]
[1764150756808,0.67,136.84,136.82,27.67570927]
[1764150757089,0.67,136.84,136.83,2.09589894]
[1764150757621,0.67,136.84,136.82,2.09589894]
[1764150758127,0.67,136.84,136.83,7.30833881]
[1764150758499,0.67,136.84,136.83,10.57610743]
[1764150759906,0.67,136.84,136.81,54.81846009]
[1764150760109,0.67,136.84,136.83,3.26776862]
[1764150761721,0.67,136.84,136.81,18.27228257]